bitfinex/quotes_SOLUSD_20240826
["timestamp","ask_amount","ask_price","bid_price","bid_amount"]
[1724685634850,6.3637,157.14,157.09,15.9144]
[1724685635264,6.3634,157.15,157.09,22.2798]
[1724685635888,6.3634,157.15,157.1,6.3652]
[1724685636263,6.3638,157.14,157.09,22.2799]
[1724685637179,6.3638,157.14,157.09,15.9144]
[1724685637983,6.3638,157.14,157.09,22.2799]
[1724685638481,15.9083,157.15,157.06,15.9171]
[1724685638684,0.12549,157.13,157.06,15.9171]
[1724685638852,0.12549,157.13,157.06,22.284]
[1724685639455,6.3653,157.11,157.06,22.284]
[1724685640282,6.3644,157.13,157.08,6.3661]
[1724685640586,6.3645,157.12,157.06,15.9171]
[1724685640881,6.365,157.11,157.06,22.284]
[1724685641658,6.3646,157.12,157.07,6.3665]
[1724685641859,30.9828,157.15,157.08,1.27303175]
[1724685642080,6.3657,157.1,157.03,28.4174]
[1724685642391,6.3657,157.1,157.04,6.3676]
[1724685642575,428.92549,157.14,157.06,15.9174]
[1724685642775,428.92549,157.14,157.07,1.273083]
[1724685643102,6.3645,157.13,157.07,7.639583]
[1724685643590,6.3645,157.13,157.07,6.3665]
[1724685643786,383.8,157.14,157.09,6.3656]
[1724685644488,390.1638,157.14,157.08,6.3661]
[1724685645588,390.1638,157.14,157.09,6.3656]
[1724685645962,383.8,157.14,157.09,6.3656]
[1724685646289,383.8,157.14,157.11,6.3649]
[1724685646463,383.8,157.18,157.11,6.3649]
[1724685647367,6.3631,157.16,157.11,6.3649]
[1724685647574,6.3637,157.15,157.09,15.9144]
[1724685647775,6.3637,157.15,157.03,37.9701]
[1724685647776,0.12549,157.17,157.07,6.3662]
[1724685647988,0.12549,157.17,157.05,15.9177]
[1724685647989,61.15748,157.17,157.05,15.9177]
[1724685648185,61.15748,157.17,157.06,20.0]
[1724685648488,6.3646,157.12,157.07,1.27306339]
[1724685648980,6.3646,157.12,157.06,6.3666]
[1724685649170,0.12549,157.16,157.05,22.285]
[1724685649490,0.12549,157.13,157.05,22.2849]
[1724685649667,45.25098,157.13,157.05,22.2849]
[1724685649862,6.3653,157.11,157.05,22.2849]
[1724685650271,45.25098,157.13,157.03,6.1296]
[1724685650272,6.3662,157.08,157.03,12.4977]
[1724685650481,6.3654,157.1,157.05,6.3672]
[1724685650659,6.365,157.11,157.06,1.27319823]
[1724685651285,6.3645,157.12,157.06,1.27319823]
[1724685651488,6.364,157.14,157.08,6.3657]
[1724685652275,6.3642,157.13,157.08,6.3657]
[1724685652486,6.3635,157.15,157.09,6.3655]
[1724685652677,6.3642,157.13,157.08,6.366]
[1724685652879,6.3645,157.12,157.07,15.9155]
[1724685653283,0.12549,157.16,157.05,6.3673]
[1724685653491,65.25098,157.16,157.05,6.3673]
[1724685653784,0.12549,157.12,157.05,6.3673]
[1724685653994,0.25098,157.12,157.04,22.2868]
[1724685654304,0.12549,157.12,157.04,15.9191]
[1724685654503,0.12549,157.11,157.04,15.9191]
[1724685654706,0.25098,157.11,157.04,15.9191]
[1724685654874,6.3662,157.08,157.04,15.9191]
[1724685655077,0.25098,157.11,157.04,22.2868]
[1724685655704,6.366,157.09,157.04,22.2868]
[1724685656383,6.3653,157.11,157.05,7.640454]
[1724685657309,6.3637,157.14,157.08,15.9145]
[1724685657514,6.3637,157.14,157.09,1.27302733]
[1724685657710,383.8,157.17,157.09,1.27302733]
[1724685657909,383.8,157.18,157.14,6.3634]
[1724685658203,383.8,157.18,157.12,15.9107]
[1724685658384,390.1624,157.18,157.13,6.3641]
[1724685659404,390.1624,157.18,157.14,15.9088]
[1724685659405,383.8,157.18,157.14,15.9088]
[1724685659588,383.8,157.18,157.16,6.3626]
[1724685659913,6.3609,157.21,157.16,6.3626]
[1724685660115,6.3614,157.2,157.15,1.27246375]
[1724685660402,6.3619,157.19,157.14,15.9088]
[1724685660780,6.3622,157.18,157.14,15.9088]
[1724685660977,0.12549,157.22,157.11,22.0743]
[1724685661313,6.3632,157.16,157.11,22.0743]
[1724685661610,6.3632,157.16,157.11,28.4391]
[1724685663507,6.3634,157.15,157.11,15.9121]
[1724685663811,6.363,157.16,157.11,15.9121]
[1724685664123,6.3633,157.15,157.11,15.9121]
[1724685665484,0.12549,157.2,157.11,22.277]
[1724685665690,0.12549,157.18,157.11,15.9121]
[1724685665888,0.25098,157.19,157.11,15.9121]
[1724685666102,0.12549,157.18,157.11,15.9121]
[1724685666303,0.12549,157.19,157.11,15.9121]
[1724685666791,6.3628,157.17,157.12,6.3644]
[1724685666990,0.12549,157.18,157.11,22.2769]
[1724685667316,0.25098,157.19,157.11,22.2769]
[1724685668516,6.3634,157.15,157.11,15.9121]
[1724685668899,6.3634,157.15,157.11,22.277]
[1724685669408,0.25098,157.19,157.12,6.3645]
[1724685669792,15.903,157.21,157.14,6.3636]
[1724685669990,0.8131925,157.31,157.09,1.27277138]
[1724685669991,16.5247,157.27,157.15,1.27268566]
[1724685670222,383.8,157.26,157.17,15.9058]
[1724685670518,6.3609,157.21,157.16,6.3625]
[1724685670890,6.3613,157.2,157.17,1.59307692]
[1724685671215,6.361,157.21,157.16,6.3629]
[1724685671403,6.361,157.21,157.17,1.59307907]
[1724685671727,45.0,157.2,157.12,6.5984]
[1724685672008,6.3626,157.17,157.13,1.59347292]
[1724685672218,45.0,157.2,157.12,7.87111547]
[1724685672219,6.3613,157.2,157.14,6.3637]
[1724685672396,15.9018,157.22,157.14,1.59340425]
[1724685672604,6.3633,157.15,157.14,1.59340425]
[1724685673110,6.3629,157.16,157.12,6.5984]
[1724685675889,6.362,157.19,157.13,7.63657237]
[1724685676088,0.12549,157.2,157.12,22.509]
[1724685676511,6.363,157.16,157.12,22.509]
[1724685677111,6.363,157.16,157.12,23.78174785]
[1724685677313,0.12549,157.2,157.12,6.5984]
[1724685677314,6.3628,157.17,157.12,6.5984]
[1724685677512,6.3621,157.18,157.13,6.364]
[1724685677906,6.362,157.19,157.13,15.9094]
[1724685678097,6.3613,157.2,157.15,6.3632]
[1724685679418,6.3617,157.19,157.15,6.3632]
[1724685679721,383.8,157.21,157.16,6.3626]
[1724685680017,6.3614,157.2,157.16,6.3626]
[1724685680187,6.3614,157.2,157.15,15.9076]
[1724685680388,6.3605,157.22,157.18,6.3618]
[1724685680622,6.3605,157.22,157.17,15.9059]
[1724685681221,6.3611,157.21,157.17,15.9059]
[1724685681399,6.3611,157.21,157.17,23.54054975]
[1724685681800,6.3605,157.22,157.17,23.54054975]
[1724685682002,6.3605,157.22,157.17,22.2682]
[1724685682503,0.12549,157.25,157.18,6.362]
[1724685682701,45.25098,157.25,157.18,6.362]
[1724685683023,15.8996,157.24,157.16,15.991]
[1724685683316,45.12549,157.23,157.14,15.9089]
[1724685683526,6.3618,157.19,157.14,22.2726]
[1724685683697,0.12549,157.22,157.14,15.9089]
[1724685683896,6.3612,157.21,157.16,6.3629]
[1724685685013,15.9016,157.22,157.12,22.931]
[1724685685323,6.363,157.16,157.12,22.931]
[1724685685701,0.12549,157.17,157.12,6.5984]
[1724685686020,6.3638,157.14,157.12,6.5984]
[1724685686718,6.3634,157.15,157.12,6.5984]
[1724685687022,6.3638,157.14,157.12,6.5984]
[1724685688105,6.3641,157.13,157.12,6.5984]
[1724685688640,0.12549,157.17,157.12,6.5984]
[1724685688814,92.7083,157.21,157.12,6.5984]
[1724685688815,0.12549,157.19,157.12,7.87115849]
[1724685689028,45.25098,157.19,157.12,7.87115849]
[1724685689522,6.3632,157.16,157.12,7.87115849]
[1724685689726,6.3632,157.16,157.12,6.5984]
[1724685689932,6.3632,157.16,157.12,12.9629]
[1724685690314,6.3632,157.16,157.12,6.5984]
[1724685691126,15.9029,157.21,157.13,1.27277877]
[1724685691441,6.3608,157.22,157.17,6.3625]
[1724685692044,6.3609,157.21,157.17,6.3625]
[1724685693029,6.3609,157.21,157.16,6.3628]
[1724685693435,6.3606,157.22,157.17,6.3624]
[1724685693670,6.3606,157.22,157.17,7.63462925]
[1724685693815,6.3606,157.22,157.17,6.3624]
[1724685694428,6.361,157.21,157.16,6.3628]
[1724685695012,6.361,157.21,157.15,15.9078]
[1724685695013,6.361,157.21,157.17,6.3625]
[1724685695215,6.3606,157.22,157.17,6.3625]
[1724685695416,6.3606,157.22,157.18,6.362]
[1724685695615,0.12549,157.26,157.19,6.3614]
[1724685695838,65.25098,157.26,157.18,7.63412875]
[1724685696025,65.25098,157.26,157.18,6.3619]
[1724685696341,6.3605,157.22,157.18,1.27222854]
[1724685696524,6.3612,157.21,157.17,17.17802956]
[1724685696845,6.3612,157.21,157.17,15.9058]
[1724685697224,6.3605,157.22,157.17,23.54060648]
[1724685697425,6.3605,157.22,157.17,22.2683]
[1724685697755,6.3605,157.22,157.18,6.362]
[1724685698138,6.3605,157.22,157.17,22.2682]
[1724685699330,0.12549,157.24,157.12,22.3586]
[1724685699631,0.12549,157.21,157.12,22.3586]
[1724685699935,45.25098,157.21,157.12,22.3586]
[1724685700427,6.3626,157.17,157.12,29.99573563]
[1724685700624,45.12549,157.21,157.12,23.63123563]
[1724685700825,6.361,157.21,157.16,6.3629]
[1724685701229,6.361,157.21,157.17,1.27235812]
[1724685701431,6.361,157.21,157.15,22.2708]
[1724685701847,6.3613,157.2,157.15,22.2708]
[1724685702970,6.3613,157.2,157.16,6.3629]
[1724685703251,6.3608,157.22,157.16,6.3629]
[1724685703552,6.361,157.21,157.16,6.3629]
[1724685704438,383.8,157.26,157.12,22.3586]
[1724685704622,383.8,157.26,157.17,15.9057]
[1724685704950,383.8,157.26,157.18,1.27222969]
[1724685705458,6.3601,157.23,157.18,7.63422969]
[1724685706031,6.3597,157.24,157.19,6.3616]
[1724685706349,6.3597,157.24,157.2,7.72628378]
[1724685706653,6.3593,157.25,157.21,1.27208293]
[1724685707060,6.3593,157.25,157.21,7.63288293]
[1724685707261,6.3593,157.25,157.21,6.3608]
[1724685708452,6.3593,157.25,157.2,28.5437]
[1724685709023,16.02329,157.26,157.2,6.4542]
[1724685709226,0.12549,157.24,157.17,1.59280196]
[1724685709548,6.3614,157.2,157.16,6.0991]
[1724685709957,6.361,157.21,157.16,12.4619]
[1724685710358,15.9019,157.22,157.16,6.0991]
[1724685710744,6.3617,157.19,157.16,6.0991]
[1724685711831,6.3622,157.18,157.16,6.0991]
[1724685712438,6.3625,157.17,157.16,6.0991]
[1724685712641,15.9019,157.22,157.12,6.3645]
[1724685712642,0.12549,157.21,157.12,6.3645]
[1724685712852,6.3626,157.17,157.12,6.3645]
[1724685713146,6.362,157.19,157.14,6.3635]
[1724685713363,6.362,157.19,157.15,1.27253611]
[1724685713673,383.8,157.23,157.16,6.3629]
[1724685713835,6.361,157.21,157.16,7.63528589]
[1724685714850,6.3613,157.2,157.16,7.63528589]
[1724685715262,6.3613,157.2,157.16,1.27238589]
[1724685715864,6.3613,157.2,157.15,22.2711]
[1724685716072,6.3613,157.2,157.16,1.27242733]
[1724685716654,6.3613,157.2,157.15,22.2711]
[1724685717250,6.3613,157.2,157.16,1.27242229]
[1724685717460,6.3613,157.2,157.15,22.2711]
[1724685717874,6.3617,157.19,157.15,15.9079]
[1724685719776,6.3617,157.19,157.15,17.18043462]
[1724685720684,15.9006,157.23,157.15,17.18043462]
[1724685720685,6.3615,157.2,157.15,17.18043462]
[1724685720846,6.361,157.21,157.16,1.27237046]
[1724685721051,6.361,157.21,157.16,7.63517046]
[1724685721479,6.361,157.21,157.16,6.3628]
[1724685721885,6.3613,157.2,157.16,6.3628]
[1724685722886,6.361,157.21,157.17,6.3624]
[1724685723260,383.8,157.25,157.19,6.637]
[1724685723463,15.8975,157.26,157.19,6.637]
[1724685723775,20.0,157.25,157.19,6.637]
[1724685723981,6.3611,157.21,157.19,6.637]
[1724685724185,6.3613,157.2,157.19,6.637]
[1724685725678,6.3611,157.21,157.19,6.637]
[1724685727382,390.1589,157.26,157.21,6.3606]
[1724685727599,6.3589,157.26,157.21,7.63258131]
[1724685728576,402.98708514,157.3,157.22,6.3603]
[1724685729071,6.3588,157.27,157.22,6.3603]
[1724685730073,6.358,157.29,157.24,6.3595]
[1724685730270,390.1573,157.3,157.25,7.63095551]
[1724685731063,390.1573,157.3,157.26,6.3588]
[1724685731265,7.1700925,157.31,157.26,6.3588]
[1724685731777,0.8131925,157.31,157.27,13.63553265]
[1724685731975,0.8131925,157.31,157.28,7.62953063]
[1724685732292,0.8131925,157.31,157.28,1.27153063]
[1724685732783,0.8131925,157.31,157.27,6.0057]
[1724685733572,6.358,157.29,157.27,6.0057]
[1724685735872,0.12549,157.3,157.2,21.9825]
[1724685736068,45.25098,157.3,157.2,21.9825]
[1724685736283,6.3609,157.21,157.2,6.0057]
[1724685737077,6.3602,157.23,157.2,6.0057]
[1724685737968,6.3609,157.21,157.17,6.0057]
[1724685738170,6.3609,157.21,157.17,12.3682]
[1724685739093,6.3606,157.22,157.17,12.3682]
[1724685739791,6.3601,157.23,157.18,6.3621]
[1724685739998,6.3601,157.23,157.19,6.3616]
[1724685740288,6.3601,157.23,157.17,6.0057]
[1724685740289,6.3601,157.23,157.18,6.362]
[1724685740670,45.25098,157.22,157.13,6.2455]
[1724685740858,6.3637,157.14,157.13,6.2455]
[1724685741059,6.3641,157.13,157.09,6.0776]
[1724685741268,0.12549,157.17,157.09,6.0776]
[1724685741484,6.3642,157.13,157.09,6.0776]
[1724685741883,383.8,157.18,157.09,6.0776]
[1724685742195,6.3633,157.16,157.11,6.3648]
[1724685742392,6.3633,157.15,157.1,6.3653]
[1724685743394,6.3638,157.14,157.09,12.4433]
[1724685743592,383.8,157.18,157.1,1.59355095]
[1724685743781,6.3634,157.15,157.1,6.3652]
[1724685745894,0.12549,157.19,157.1,15.9126]
[1724685746080,383.8,157.2,157.11,4.14280247]
[1724685746267,383.8,157.2,157.12,17.50405315]
[1724685746466,383.8,157.2,157.12,15.9106]
[1724685747173,31.7869,157.27,157.14,0.12549]
[1724685747378,415.5869,157.27,157.14,0.25098]
[1724685747979,415.5869,157.27,157.15,6.4024]
[1724685748177,6.3613,157.2,157.15,6.4024]
[1724685749601,6.3613,157.2,157.15,12.7657]
[1724685750102,15.8989,157.25,157.16,6.3628]
[1724685750311,6.3609,157.21,157.16,6.3628]
[1724685750612,6.3605,157.22,157.17,6.3624]
[1724685750971,383.8,157.27,157.16,16.3367]
[1724685751173,6.3595,157.25,157.2,6.3609]
[1724685751367,6.3597,157.24,157.19,6.3616]
[1724685753470,6.3601,157.23,157.19,6.3616]
[1724685753674,6.3601,157.23,157.18,15.9046]
[1724685753877,6.3601,157.23,157.18,22.2666]
[1724685755802,399.6954,157.28,157.18,15.9046]
[1724685756006,45.12549,157.27,157.18,15.9046]
[1724685756195,399.6954,157.28,157.18,15.9046]
[1724685756997,15.8954,157.28,157.18,15.9046]
[1724685757192,15.8954,157.28,157.2,6.3611]
[1724685757601,0.12549,157.29,157.22,6.3603]
[1724685757807,6.3591,157.26,157.2,15.9024]
[1724685758111,0.12549,157.28,157.21,6.3607]
[1724685758492,6.3589,157.26,157.22,6.5865]
[1724685759002,6.3593,157.25,157.22,6.5865]
[1724685759611,6.3589,157.26,157.22,6.5865]
[1724685760191,6.3593,157.25,157.22,6.5865]
[1724685760613,6.3597,157.24,157.22,6.5865]
[1724685762607,61.02039,157.29,157.22,6.5865]
[1724685762909,15.8949,157.29,157.22,6.5865]
[1724685763290,6.359,157.26,157.22,6.5865]
[1724685764708,6.3585,157.27,157.22,12.9466]
[1724685765029,6.3585,157.27,157.23,6.36]
[1724685765247,384.6131925,157.31,157.22,6.5865]
[1724685765529,384.6131925,157.31,157.24,32.25423652]
[1724685766228,384.6131925,157.31,157.26,15.8965]
[1724685766429,6.3574,157.3,157.26,22.2553]
[1724685766603,6.3577,157.29,157.25,6.3592]
[1724685766802,6.3577,157.29,157.24,21.4433]
[1724685767200,6.3577,157.29,157.25,1.27182459]
[1724685767400,6.3577,157.29,157.24,21.4433]
[1724685767632,6.3577,157.29,157.25,1.27174333]
[1724685768028,6.3577,157.29,157.24,21.4433]
[1724685769107,6.3573,157.3,157.25,6.3592]
[1724685769303,6.3579,157.29,157.25,6.3592]
[1724685770930,6.3573,157.3,157.25,6.3592]
[1724685771130,6.3573,157.3,157.25,7.63081855]
[1724685771329,0.8131925,157.31,157.24,15.0837]
[1724685771529,6.3581,157.28,157.24,22.71509509]
[1724685772026,6.3581,157.28,157.24,21.4433]
[1724685772518,6.3581,157.28,157.24,22.71505243]
[1724685773434,6.3579,157.29,157.24,21.4433]
[1724685773643,6.3574,157.3,157.25,7.63095025]
[1724685774249,6.3576,157.29,157.25,7.63095025]
[1724685774737,6.3576,157.29,157.25,6.3592]
[1724685774914,6.358,157.28,157.24,21.4432]
[1724685775119,6.358,157.28,157.24,15.0837]
[1724685775939,6.3585,157.27,157.24,15.0837]
[1724685776140,6.3582,157.28,157.24,15.0837]
[1724685776341,6.3582,157.28,157.24,21.4433]
[1724685777835,6.3578,157.29,157.25,1.27175006]
[1724685778028,6.3573,157.3,157.25,15.8978]
[1724685778339,390.9700925,157.31,157.27,6.3584]
[1724685779021,6.3577,157.29,157.25,22.257]
[1724685779926,6.3575,157.3,157.25,23.52864509]
[1724685780110,6.358,157.29,157.25,15.8978]
[1724685780312,6.3577,157.29,157.26,1.27164506]
[1724685780633,6.3574,157.3,157.25,22.2569]
[1724685780940,6.3577,157.29,157.25,22.2569]
[1724685781338,6.3577,157.29,157.26,1.27154998]
[1724685781528,384.6131925,157.31,157.29,15.8939]
[1724685781915,384.6131925,157.31,157.29,17.16527452]
[1724685782237,384.6131925,157.31,157.29,23.78937452]
[1724685782444,384.6131925,157.31,157.29,30.14687452]
[1724685783433,384.6131925,157.31,157.29,23.78937452]
[1724685784842,384.6131925,157.31,157.29,22.518]
[1724685785052,384.6131925,157.31,157.29,6.6241]
[1724685785438,384.6131925,157.31,157.29,7.89546248]
[1724685785839,384.6131925,157.31,157.3,7.6285505]
[1724685786030,0.8131925,157.31,157.3,6.3572]
[1724685786339,0.8131925,157.31,157.29,12.9816]
[1724685786857,0.8131925,157.31,157.29,6.6241]
[1724685787622,0.8131925,157.31,157.29,12.9817]
[1724685788237,0.8131925,157.31,157.29,6.6241]
[1724685788853,0.8131925,157.31,157.29,12.9817]
[1724685789028,0.8131925,157.31,157.29,6.6241]
[1724685789627,0.8131925,157.31,157.28,6.3579]
[1724685789628,0.8131925,157.31,157.26,6.3585]
[1724685789829,6.3578,157.29,157.25,12.8437]
[1724685790222,6.3573,157.3,157.25,12.8437]
[1724685790463,0.8131925,157.31,157.25,6.4845]
[1724685790753,6.3579,157.29,157.25,6.4845]
[1724685791526,6.3572,157.3,157.25,14.11529326]
[1724685791726,6.3572,157.3,157.25,12.8436]
[1724685791960,6.3577,157.29,157.25,12.8436]
[1724685792342,6.3577,157.29,157.25,6.4845]
[1724685793260,6.3581,157.28,157.25,5.9845]
[1724685794932,6.3585,157.27,157.24,15.8987]
[1724685795734,0.12549,157.3,157.24,22.2581]
[1724685796055,0.25098,157.3,157.24,15.8987]
[1724685796265,6.3584,157.28,157.24,22.2583]
[1724685796642,6.3577,157.29,157.24,22.2583]
[1724685797161,6.3582,157.28,157.24,15.8987]
[1724685797344,6.3582,157.28,157.22,6.4599]
[1724685797345,6.3588,157.27,157.22,12.8201]
[1724685798354,6.3588,157.27,157.23,6.3601]
[1724685798552,6.358,157.29,157.24,6.3593]
[1724685798730,6.358,157.28,157.24,6.3593]
[1724685799053,384.6131925,157.31,157.23,21.7593]
[1724685799054,6.3586,157.27,157.23,21.7593]
[1724685800334,384.6131925,157.31,157.23,21.7593]
[1724685800335,6.358,157.29,157.24,6.3595]
[1724685800860,6.3582,157.28,157.24,6.3595]
[1724685801051,384.6131925,157.31,157.25,7.63059025]
[1724685801253,6.3579,157.29,157.24,6.3595]
[1724685802956,6.3579,157.29,157.25,6.3592]
[1724685803157,0.8131925,157.31,157.28,6.358]
[1724685803336,0.8131925,157.31,157.27,15.8957]
[1724685803337,0.8131925,157.31,157.27,22.2541]
[1724685803537,0.8131925,157.31,157.27,15.8957]
[1724685803857,0.8131925,157.31,157.29,6.3576]
[1724685804238,0.8131925,157.31,157.28,15.171]
[1724685804736,0.8131925,157.31,157.28,21.529]
[1724685805370,0.8131925,157.31,157.28,15.171]
[1724685805937,0.8131925,157.31,157.28,21.529]
[1724685806137,0.8131925,157.31,157.28,15.171]
[1724685806660,0.8131925,157.31,157.28,21.529]
[1724685807265,0.8131925,157.31,157.29,6.3576]
[1724685807472,0.8131925,157.31,157.28,15.171]
[1724685807473,0.8131925,157.31,157.28,21.529]
[1724685807991,0.8131925,157.31,157.29,12.9456]
[1724685808583,0.8131925,157.31,157.3,6.3572]
[1724685808790,0.8131925,157.31,157.3,7.62844908]
[1724685809090,0.8131925,157.31,157.3,6.3572]
[1724685810901,0.8131925,157.31,157.29,6.588]
[1724685811983,0.8131925,157.31,157.29,12.9453]
[1724685813492,0.8131925,157.31,157.3,6.3572]
[1724685813659,0.8131925,157.31,157.29,12.9456]
[1724685814586,0.8131925,157.31,157.3,6.3572]
[1724685815488,0.8131925,157.31,157.29,12.9456]
[1724685816207,0.8131925,157.31,157.29,6.588]
[1724685816506,0.8131925,157.31,157.28,22.2525]
[1724685817302,0.8131925,157.31,157.29,6.3576]
[1724685818415,0.8131925,157.31,157.3,6.3572]
[1724685822315,0.8131925,157.31,157.29,6.3576]
[1724685822492,0.8131925,157.31,157.28,15.8946]
[1724685822700,0.8131925,157.31,157.29,6.3574]
[1724685823015,0.8131925,157.31,157.3,6.3572]
[1724685824707,0.8131925,157.31,157.3,7.62833106]
[1724685825024,0.8131925,157.31,157.3,6.3572]
[1724685829626,0.8131925,157.31,157.3,7.62832128]
[1724685829917,0.8131925,157.31,157.3,6.3572]
[1724685830113,0.8131925,157.31,157.3,10.4950108]
[1724685833623,0.8131925,157.31,157.3,7.94866569]
[1724685834121,0.8131925,157.31,157.3,6.3572]
[1724685834514,0.8131925,157.31,157.28,15.8946]
[1724685834692,0.8131925,157.31,157.29,1.59166823]
[1724685834892,0.8131925,157.31,157.28,15.8946]
[1724685835197,0.8131925,157.31,157.29,1.59166813]
[1724685835397,0.8131925,157.31,157.3,6.3572]
[1724685835927,0.8131925,157.31,157.28,15.8946]
[1724685836222,0.8131925,157.31,157.28,22.2526]
[1724685836529,0.8131925,157.31,157.29,6.3576]
[1724685837519,0.8131925,157.31,157.3,6.3572]
[1724685838592,0.8131925,157.31,157.3,7.62840733]
[1724685838992,0.8131925,157.31,157.3,6.3572]
[1724685842219,0.8131925,157.31,157.3,9.22006716]
[1724685842522,0.8131925,157.31,157.3,7.94885371]
[1724685842722,0.3131925,157.31,157.3,7.94885371]
[1724685843226,0.3131925,157.31,157.3,7.94886185]
[1724685844734,0.3131925,157.31,157.3,55.62080053]
[1724685844900,0.3131925,157.31,157.3,60.4409218]
[1724685845104,0.3131925,157.31,157.3,56.89172455]
[1724685845433,0.3131925,157.31,157.3,55.62080053]
[1724685846099,0.3131925,157.31,157.3,60.44255947]
[1724685846299,0.3131925,157.31,157.3,57.01721871]
[1724685846519,0.3131925,157.31,157.3,55.74629053]
[1724685846728,0.3131925,157.31,157.3,59.29688897]
[1724685847133,0.3131925,157.31,157.3,55.62080053]
[1724685848332,0.3131925,157.31,157.3,10.62080053]
[1724685848938,0.3131925,157.31,157.3,75.49531053]
[1724685849109,0.3131925,157.31,157.3,30.49531053]
[1724685849440,0.3131925,157.31,157.3,10.49531053]
[1724685849734,0.3131925,157.31,157.3,30.4949378]
[1724685851139,0.3131925,157.31,157.3,31.76596926]
[1724685851501,0.3131925,157.31,157.3,30.4949378]
[1724685851701,9.25e-05,157.31,157.3,120.8094117]
[1724685852024,9.25e-05,157.31,157.3,137.63383218]
[1724685852213,9.25e-05,157.31,157.3,127.08067199]
[1724685852834,9.25e-05,157.31,157.3,127.07999635]
[1724685853201,9.25e-05,157.31,157.3,125.80906182]
[1724685853714,9.25e-05,157.31,157.3,127.07981483]
[1724685854018,9.25e-05,157.31,157.3,125.80906182]
[1724685854227,9.25e-05,157.31,157.3,128.3323732]
[1724685854416,9.25e-05,157.31,157.3,125.80906182]
[1724685854615,21.8358,157.44,157.39,6.3533]
[1724685854802,21.8358,157.44,157.39,7.62384275]
[1724685855015,15.4842,157.44,157.4,7.62372007]
[1724685856008,15.4842,157.44,157.4,6.3532]
[1724685856210,15.4842,157.44,157.4,7.62362308]
[1724685856944,15.4842,157.44,157.4,1.27042308]
[1724685857140,15.4842,157.44,157.38,15.8846]
[1724685857619,15.4842,157.44,157.39,1.2704235]
[1724685857930,15.4842,157.44,157.4,1.27042361]
[1724685858135,15.4842,157.44,157.42,15.88]
[1724685858305,15.4842,157.44,157.4,1.27042361]
[1724685858306,15.4842,157.44,157.37,0.12549]
[1724685858506,15.4842,157.44,157.34,44.21221324]
[1724685858707,15.4842,157.44,157.35,24.13646584]
[1724685858930,15.4842,157.44,157.36,1.5909484]
[1724685859129,15.4842,157.44,157.36,15.8869]
[1724685860007,21.8359,157.44,157.39,6.3536]
[1724685860232,15.4842,157.44,157.38,15.8842]
[1724685860834,21.8361,157.44,157.39,6.3535]
[1724685861037,6.3525,157.42,157.39,1.27050497]
[1724685861206,15.4842,157.44,157.39,1.27050497]
[1724685861406,15.4842,157.44,157.38,15.8842]
[1724685861629,15.4842,157.44,157.35,15.8881]
[1724685861841,6.3527,157.42,157.37,6.3543]
[1724685862004,15.4842,157.44,157.38,15.8847]
[1724685862208,21.8361,157.44,157.39,6.3534]
[1724685862411,6.3512,157.46,157.4,15.8824]
[1724685862730,6.3516,157.44,157.37,21.9758]
[1724685862935,6.3522,157.43,157.37,15.8859]
[1724685863319,6.3517,157.44,157.38,1.27053091]
[1724685863516,7.1636925,157.47,157.42,6.3523]
[1724685863717,0.8131925,157.47,157.4,15.8829]
[1724685863916,45.8131925,157.47,157.4,15.8829]
[1724685864431,6.3511,157.46,157.41,6.3527]
[1724685865309,7.1636925,157.47,157.42,7.62248963]
[1724685865517,6.3509,157.46,157.42,6.3522]
[1724685865838,6.3509,157.46,157.41,6.3527]
[1724685866133,6.3509,157.46,157.42,6.3523]
[1724685866638,7.1635925,157.47,157.43,1.27029119]